fUSD/lending_fUSD_20250206
["ID","MTS","AMOUNT","RATE_DAILY","PERIOD"]
[351984120,1738867848633,-1595.4,0.00016849,2]
[351984122,1738867848645,-500.0,0.00016849,2]
[351984124,1738867848656,-151.17,0.00016849,2]
[351984125,1738867848667,-562.03,0.00016849,2]
[351984128,1738867848679,-537.82,0.00016849,2]
[351984130,1738867848690,-764.68,0.00016849,2]
[351984132,1738867848703,-500.0,0.00016849,2]
[351984134,1738867848712,-311.99398163,0.00016849,2]
[351984154,1738867849042,-517.80912267,0.00016849,2]
[351984155,1738867849055,-393.04398086,0.00016849,2]
[351984156,1738867849076,-946.96291484,0.00016849,2]
[351984157,1738867849088,-2028.65,0.00016849,2]
[351984159,1738867849099,-500.0,0.00016849,2]
[351984160,1738867849111,-500.0,0.00016849,2]
[351984162,1738867849123,-724.86,0.00016849,2]
[351984165,1738867849137,-917.83,0.00016849,2]
[351984166,1738867849148,-1019.86,0.00016849,2]
[351984168,1738867849160,-1039.14,0.00016849,2]
[351984170,1738867849171,-954.62,0.00016849,2]
[351984173,1738867849182,-500.0,0.00016849,2]
[351984175,1738867849193,-1567.45,0.00016849,2]
[351984177,1738867849204,-931.49,0.00016849,2]
[351984179,1738867849215,-500.0,0.00016849,2]
[351984181,1738867849227,-500.0,0.00016849,2]
[351984183,1738867849236,-500.0,0.00016849,2]
[351984185,1738867849247,-500.0,0.00016849,2]
[351984187,1738867849257,-1053.66,0.00016849,2]
[351984189,1738867849267,-963.56,0.00016849,2]
[351984191,1738867849279,-1242.56,0.00016849,2]
[351984193,1738867849290,-783.88,0.00016849,2]
[351984195,1738867849300,-500.0,0.00016849,2]
[351984197,1738867849310,-1118.0,0.00016849,2]
[351984199,1738867849320,-788.64,0.00016849,2]
[351984201,1738867849330,-500.0,0.00016849,2]
[351984223,1738867849341,-517.64,0.00016849,2]
[351984225,1738867849554,-746.18,0.00016849,2]
[351984228,1738867849564,-536.31,0.00016849,2]
[351984229,1738867849574,-500.0,0.00016849,2]
[351984232,1738867849583,-500.0,0.00016849,2]
[351984234,1738867849594,-581.47,0.00016849,2]
[351984236,1738867849604,-117.97610767,0.00016849,2]
[351984240,1738867849633,-256.28236126,0.00016849,2]
[351984242,1738867849645,-240.84153107,0.00016849,2]
[351984244,1738867849655,-721.65846893,0.00016849,2]
[351984246,1738867849667,-2516.45153107,0.00016849,2]
[351984248,1738867849676,-1033.64,0.00016849,2]
[351984250,1738867849686,-825.6,0.00016849,2]
[351984252,1738867849696,-1053.67473211,0.00016849,2]
[351984255,1738867849707,-420.29526789,0.00016849,2]
[351984257,1738867849716,-547.15,0.00016849,2]
[351984259,1738867849726,-981.08963634,0.00016849,2]
[351984263,1738867849756,-218.42036366,0.00016849,2]
[351984265,1738867849765,-500.0,0.00016849,2]
[351984267,1738867849775,-247.52461634,0.00016849,2]
[351984269,1738867849787,-252.47538366,0.00016849,2]
[351984271,1738867849797,-1581.33,0.00016849,2]
[351984273,1738867849806,-2018.68,0.00016849,2]
[351984275,1738867849816,-500.0,0.00016849,2]
[351984277,1738867849826,-500.0,0.00016849,2]
[351984279,1738867849835,-2039.23,0.00016849,2]
[351984281,1738867849845,-500.0,0.00016849,2]
[351984283,1738867849856,-830.8426476,0.00016849,2]
[351984286,1738867849881,-309.0,0.00016849,2]
[351984289,1738867849894,-389.4173524,0.00016849,2]
[351984291,1738867849904,-500.0,0.00016849,2]
[351984293,1738867849914,-1421.24,0.00016849,2]
[351984295,1738867849924,-899.5,0.00016849,2]
[351984297,1738867849934,-1045.4,0.00016849,2]
[351984299,1738867849944,-1066.46,0.00016849,2]
[351984301,1738867849954,-500.0,0.00016849,2]
[351984303,1738867849964,-500.0,0.00016849,2]
[351984305,1738867849974,-500.0,0.00016849,2]
[351984307,1738867849984,-881.11,0.00016849,2]
[351984309,1738867849993,-500.0,0.00016849,2]
[351984311,1738867850002,-2242.72,0.00016849,2]
[351984313,1738867850012,-500.0,0.00016849,2]
[351984315,1738867850021,-500.0,0.00016849,2]
[351984317,1738867850031,-500.0,0.00016849,2]
[351984318,1738867850040,-603.07,0.00016849,2]
[351984320,1738867850049,-852.06,0.00016849,2]
[351984322,1738867850059,-807.95,0.00016849,2]
[351984325,1738867850070,-500.0,0.00016849,2]
[351984327,1738867850080,-574.95,0.00016849,2]
[351984328,1738867850089,-1994.94,0.00016849,2]
[351984331,1738867850099,-500.0,0.00016849,2]
[351984332,1738867850108,-500.0,0.00016849,2]
[351984335,1738867850118,-500.0,0.00016849,2]
[351984337,1738867850132,-1045.5,0.00016849,2]
[351984339,1738867850141,-770.13,0.00016849,2]
[351984341,1738867850151,-568.56,0.00016849,2]
[351984343,1738867850161,-500.0,0.00016849,2]
[351984345,1738867850171,-908.76,0.00016849,2]
[351984346,1738867850180,-1617.59,0.00016849,2]
[351984348,1738867850190,-500.0,0.00016849,2]
[351984350,1738867850202,-1114.4,0.00016849,2]
[351984353,1738867850212,-500.0,0.00016849,2]
[351984355,1738867850222,-500.0,0.00016849,2]
[351984356,1738867850232,-762.98,0.00016849,2]
[351984359,1738867850242,-500.0,0.00016849,2]
[351984360,1738867850253,-518.5,0.00016849,2]
[351984363,1738867850263,-553.73,0.00016849,2]
[351984364,1738867850273,-903.53,0.00016849,2]
[351984367,1738867850283,-500.0,0.00016849,2]
[351984368,1738867850292,-1477.93,0.00016849,2]
[351984369,1738867850301,-1000.0,0.00016855,2]
[351984370,1738867850310,-47455.66669432,0.00016859,2]
[351984371,1738867850319,-211.58667195,0.00016873,2]
[351984372,1738867850328,-12723.72925464,0.00016873,2]
[351984373,1738867850338,-2095.94376652,0.00016885,2]
[351984374,1738867850347,-1131.14,0.00016922,2]
[351984375,1738867850357,-450.32626017,0.00016922,2]
[351984508,1738867851863,-286.88553038,0.00016438,2]
[351984510,1738867851875,-213.11446962,0.00016438,2]
[351984512,1738867851885,-500.0,0.00016438,2]
[351984514,1738867851894,-500.0,0.00016575,2]
[351984516,1738867851904,-200.92,0.00016575,2]
[351984518,1738867851914,-500.0,0.00016712,2]
[351984520,1738867851923,-500.0,0.00016849,2]
[351984522,1738867851933,-3844.58149118,0.00016922,2]
[351984524,1738867851944,-358.33485164,0.00016922,2]
[351984527,1738867851956,-19226.0,0.00016922,2]
[351984529,1738867851967,-1925.45,0.00016922,2]
[351984533,1738867852001,-4195.29739701,0.00016922,2]
[351984535,1738867852011,-21.47201859,0.00016938,2]
[351984538,1738867852023,-129.52798141,0.00016938,2]
[351984540,1738867852034,-501.4139238,0.00016973,2]
[351984542,1738867852043,-500.0,0.0001698,2]
[351984544,1738867852052,-500.0,0.0001698,2]
[351984545,1738867852061,-500.0,0.0001698,2]
[351984547,1738867852071,-500.0,0.0001698,2]
[351984550,1738867852080,-717.11,0.0001698,2]
[351984551,1738867852089,-561.46,0.00016981,2]
[351984553,1738867852099,-500.0,0.00016981,2]
[351984555,1738867852108,-500.0,0.00016981,2]
[351984557,1738867852117,-51.07217086,0.00016981,2]
[351984563,1738867852219,-587.91782914,0.00016981,2]
[351984564,1738867852228,-276.23869715,0.00016981,2]
[351984565,1738867852240,-567.74130285,0.00016981,2]
[351984566,1738867852250,-656.15,0.00016981,2]
[351984567,1738867852259,-235.54869715,0.00016981,2]
[351984568,1738867852271,-450.94130285,0.00016981,2]
[351984569,1738867852283,-500.0,0.00016981,2]
[351984570,1738867852292,-607.76,0.00016981,2]
[351984571,1738867852302,-500.0,0.00016981,2]
[351984573,1738867852311,-601.46,0.00016981,2]
[351984575,1738867852320,-500.0,0.00016981,2]
[351984577,1738867852330,-673.03,0.00016981,2]
[351984579,1738867852339,-649.99,0.00016981,2]
[351984581,1738867852349,-500.0,0.00016981,2]
[351984583,1738867852359,-627.95,0.00016981,2]
[351984585,1738867852368,-500.0,0.00016981,2]
[351984587,1738867852378,-850.37,0.00016981,2]
[351984589,1738867852387,-500.0,0.00016981,2]
[351984591,1738867852397,-500.0,0.00016981,2]
[351984592,1738867852406,-517.41,0.00016981,2]
[351984594,1738867852416,-500.0,0.00016981,2]
[351984596,1738867852425,-556.84,0.00016981,2]
[351984598,1738867852434,-500.0,0.00016981,2]
[351984600,1738867852443,-500.0,0.00016985,2]
[351984602,1738867852453,-652.13,0.00016985,2]
[351984604,1738867852462,-889.24,0.00016985,2]
[351984606,1738867852472,-500.0,0.00016985,2]
[351984608,1738867852482,-1376.12,0.00016985,2]
[351984610,1738867852492,-1350.96,0.00016985,2]
[351984612,1738867852502,-1057.77,0.00016985,2]
[351984614,1738867852512,-1205.55,0.00016985,2]
[351984616,1738867852522,-500.0,0.00016985,2]
[351984618,1738867852535,-1304.81,0.00016985,2]
[351984620,1738867852545,-3491.37,0.00016985,2]
[351984622,1738867852553,-1042.69,0.00016985,2]
[351984624,1738867852563,-1176.95,0.00016985,2]
[351984626,1738867852573,-827.43,0.00016985,2]
[351984628,1738867852583,-1058.21,0.00016985,2]
[351984630,1738867852592,-500.0,0.00016985,2]
[351984632,1738867852602,-861.36,0.00016985,2]
[351984634,1738867852611,-628.75,0.00016985,2]
[351984636,1738867852620,-1023.55,0.00016985,2]
[351984638,1738867852630,-1000.0,0.00016985,2]
[351984640,1738867852639,-810.56,0.00016985,2]
[351984642,1738867852648,-500.0,0.00016985,2]
[351984644,1738867852658,-500.0,0.00016986,2]
[351984646,1738867852668,-500.0,0.00016986,2]
[351984648,1738867852677,-500.0,0.00016986,2]
[351984650,1738867852688,-468.35721306,0.00016986,2]
[351984652,1738867852698,-500.0,0.00016986,2]
[351984654,1738867852710,-500.0,0.00016986,2]
[351984656,1738867852718,-500.0,0.00016986,2]
[351984658,1738867852727,-500.0,0.00016986,2]
[351984660,1738867852736,-444.68438391,0.00016986,2]
[351984662,1738867852746,-500.0,0.00016986,2]
[351984664,1738867852756,-517.65,0.00016986,2]
[351984666,1738867852765,-500.0,0.00016986,2]
[351984667,1738867852774,-500.0,0.00016986,2]
[351984669,1738867852785,-642.03,0.00016986,2]
[351984671,1738867852795,-500.0,0.00016986,2]
[351984673,1738867852805,-386.01304659,0.00016986,2]
[351984675,1738867852814,-500.0,0.00016986,2]
[351984677,1738867852823,-500.0,0.00016986,2]
[351984679,1738867852833,-500.0,0.00016986,2]
[351984681,1738867852843,-500.0,0.00016986,2]
[351984683,1738867852854,-500.0,0.00016986,2]
[351984685,1738867852868,-512.4,0.00016986,2]
[351984687,1738867852888,-500.0,0.00016986,2]
[351984689,1738867852898,-500.0,0.00016986,2]
[351984691,1738867852907,-500.0,0.00016986,2]
[351984693,1738867852917,-500.0,0.00016986,2]
[351984695,1738867852927,-738.71,0.00016986,2]
[351984697,1738867852937,-500.0,0.00016986,2]
[351984699,1738867852946,-500.0,0.00016986,2]
[351984701,1738867852955,-500.0,0.00016986,2]
[351984703,1738867852965,-500.0,0.00016986,2]
[351984705,1738867852975,-500.0,0.00016986,2]
[351984707,1738867852985,-500.0,0.00016986,2]
[351984709,1738867852994,-500.0,0.00016986,2]
[351984711,1738867853005,-513.02,0.00016986,2]
[351984713,1738867853014,-500.0,0.00016986,2]
[351984715,1738867853023,-500.0,0.00016986,2]
[351984717,1738867853035,-500.0,0.00016986,2]
[351984719,1738867853045,-500.0,0.00016986,2]
[351984721,1738867853055,-500.0,0.00016986,2]
[351984723,1738867853064,-933.14,0.00016986,2]
[351984725,1738867853074,-500.0,0.00016986,2]
[351984727,1738867853082,-500.0,0.00016986,2]
[351984729,1738867853092,-500.0,0.00016986,2]
[351984731,1738867853101,-500.0,0.00016986,2]
[351984733,1738867853110,-500.0,0.00016986,2]
[351984735,1738867853121,-500.0,0.00016986,2]
[351984737,1738867853135,-500.0,0.00016986,2]
[351984739,1738867853144,-500.0,0.00016986,2]
[351984741,1738867853153,-500.0,0.00016986,2]
[351984743,1738867853163,-500.0,0.00016986,2]
[351984745,1738867853174,-500.0,0.00016986,2]
[351984747,1738867853183,-807.79,0.00016986,2]
[351984749,1738867853193,-703.22,0.00016986,2]
[351984751,1738867853204,-500.0,0.00016986,2]
[351984752,1738867853213,-766.23,0.00016986,2]
[351984754,1738867853223,-513.79,0.00016986,2]
[351984756,1738867853232,-500.0,0.00016986,2]
[351984758,1738867853242,-500.0,0.00016986,2]
[351984760,1738867853251,-634.46,0.00016986,2]
[351984762,1738867853260,-500.0,0.00016986,2]
[351984764,1738867853269,-500.0,0.00016986,2]
[351984766,1738867853280,-500.0,0.00016986,2]
[351984768,1738867853290,-500.0,0.00016986,2]
[351984770,1738867853300,-500.0,0.00016986,2]
[351984772,1738867853310,-500.0,0.00016986,2]
[351984774,1738867853319,-341.1517893,0.00016986,2]
[351984775,1738867853329,-500.0,0.00016986,2]
[351984777,1738867853339,-500.0,0.00016986,2]
[351984780,1738867853349,-500.0,0.00016986,2]
[351984781,1738867853359,-516.25,0.00016986,2]
[351984783,1738867853368,-500.0,0.00016986,2]
[351984785,1738867853378,-500.0,0.00016986,2]
[351984787,1738867853387,-500.0,0.00016986,2]
[351984789,1738867853396,-500.0,0.00016986,2]
[351984791,1738867853406,-518.89,0.00016986,2]
[351984793,1738867853415,-500.0,0.00016986,2]
[351984795,1738867853425,-500.0,0.00016986,2]
[351984797,1738867853434,-500.0,0.00016986,2]
[351984799,1738867853443,-500.0,0.00016986,2]
[351984801,1738867853453,-690.07,0.00016986,2]
[351984803,1738867853462,-500.0,0.00016986,2]
[351984805,1738867853472,-500.0,0.00016986,2]
[351984806,1738867853481,-500.0,0.00016986,2]
[351984808,1738867853490,-500.0,0.00016986,2]
[351984810,1738867853499,-500.0,0.00016986,2]
[351984812,1738867853509,-500.0,0.00016986,2]
[351984814,1738867853519,-500.0,0.00016986,2]
[351984816,1738867853530,-500.0,0.00016986,2]
[351984818,1738867853539,-587.86,0.00016986,2]
[351984820,1738867853549,-500.0,0.00016986,2]
[351984822,1738867853558,-500.0,0.00016986,2]
[351984824,1738867853568,-598.72,0.00016986,2]
[351984826,1738867853577,-500.0,0.00016986,2]
[351984828,1738867853586,-500.0,0.00016986,2]
[351984830,1738867853595,-500.0,0.00016986,2]
[351984832,1738867853605,-500.0,0.00016986,2]
[351984834,1738867853614,-500.0,0.00016986,2]
[351984836,1738867853623,-500.0,0.00016986,2]
[351984837,1738867853632,-358.18553927,0.00016986,2]
[351984838,1738867853641,-500.0,0.00016986,2]
[351984840,1738867853651,-586.04,0.00016986,2]
[351984842,1738867853660,-1618.56,0.00016986,2]
[351984843,1738867853670,-210.358937,0.00016986,2]
[351984846,1738867853679,-500.0,0.00016986,2]
[351984848,1738867853689,-510.12,0.00016986,2]
[351984850,1738867853699,-500.0,0.00016986,2]
[351984851,1738867853708,-713.81,0.00016986,2]
[351984854,1738867853718,-535.27280924,0.00016986,2]
[351984856,1738867853727,-500.0,0.00016986,2]
[351984857,1738867853737,-500.0,0.00016986,2]
[351984860,1738867853747,-724.59,0.00016986,2]
[351984862,1738867853757,-500.0,0.00016986,2]
[351984864,1738867853767,-500.0,0.00016986,2]
[351984866,1738867853776,-500.0,0.00016986,2]
[351984868,1738867853789,-587.97,0.00016986,2]
[351984870,1738867853798,-520.11,0.00016986,2]
[351984872,1738867853808,-154.121061,0.00016986,2]
[351984874,1738867853817,-737.05,0.00016986,2]
[351984876,1738867853827,-610.49,0.00016986,2]
[351984877,1738867853836,-500.0,0.00016986,2]
[351984880,1738867853846,-500.0,0.00016986,2]
[351984881,1738867853856,-500.0,0.00016986,2]
[351984883,1738867853866,-520.36,0.00016986,2]
[351984886,1738867853876,-500.0,0.00016986,2]
[351984887,1738867853886,-697.56,0.00016986,2]
[351984890,1738867853897,-500.0,0.00016986,2]
[351984892,1738867853907,-500.0,0.00016986,2]
[351984894,1738867853917,-500.0,0.00016986,2]
[351984896,1738867853927,-500.0,0.00016986,2]
[351984897,1738867853937,-500.0,0.00016986,2]
[351984899,1738867853947,-500.0,0.00016986,2]
[351984902,1738867853957,-500.0,0.00016986,2]
[351984903,1738867853967,-500.0,0.00016986,2]
[351984906,1738867853978,-554.3,0.00016986,2]
[351984908,1738867853988,-500.0,0.00016986,2]
[351984910,1738867853998,-500.0,0.00016986,2]
[351984912,1738867854008,-500.0,0.00016986,2]
[351984914,1738867854018,-500.0,0.00016986,2]
[351984916,1738867854030,-807.7,0.00016986,2]
[351984918,1738867854039,-500.0,0.00016986,2]
[351984920,1738867854049,-500.0,0.00016986,2]
[351984922,1738867854059,-902.38,0.00016986,2]
[351984924,1738867854069,-500.0,0.00016986,2]
[351984926,1738867854080,-500.0,0.00016986,2]
[351984928,1738867854090,-510.50365896,0.00016986,2]
[351984930,1738867854099,-500.0,0.00016986,2]
[351984932,1738867854109,-543.18,0.00016986,2]
[351984934,1738867854120,-500.0,0.00016986,2]
[351984936,1738867854131,-500.0,0.00016986,2]
[351984938,1738867854142,-194.51287238,0.00016986,2]
[351984940,1738867854152,-500.0,0.00016986,2]
[351984942,1738867854162,-572.5,0.00016986,2]
[351984944,1738867854174,-500.0,0.00016986,2]
[351984946,1738867854184,-500.0,0.00016986,2]
[351984948,1738867854194,-500.0,0.00016986,2]
[351984950,1738867854205,-500.0,0.00016986,2]
[351984952,1738867854219,-500.0,0.00016986,2]
[351984954,1738867854227,-847.5,0.00016986,2]
[351984956,1738867854235,-672.14,0.00016986,2]
[351984958,1738867854243,-500.0,0.00016986,2]
[351984960,1738867854253,-500.0,0.00016986,2]
[351984962,1738867854263,-500.0,0.00016986,2]
[351984963,1738867854274,-500.0,0.00016986,2]
[351984966,1738867854287,-535.91570154,0.00016986,2]
[351984968,1738867854296,-500.0,0.00016986,2]
[351984970,1738867854307,-500.0,0.00016986,2]
[351984972,1738867854317,-500.0,0.00016986,2]
[351984974,1738867854327,-500.0,0.00016986,2]
[351984976,1738867854337,-500.0,0.00016986,2]
[351984978,1738867854347,-826.95,0.00016986,2]
[351984980,1738867854357,-500.0,0.00016986,2]
[351984982,1738867854367,-908.0,0.00016986,2]
[351984984,1738867854376,-500.0,0.00016986,2]
[351984986,1738867854386,-500.0,0.00016986,2]
[351984988,1738867854396,-500.0,0.00016986,2]
[351984990,1738867854406,-500.0,0.00016986,2]
[351984992,1738867854416,-722.65,0.00016986,2]
[351984994,1738867854425,-500.0,0.00016986,2]
[351984996,1738867854435,-559.38,0.00016986,2]
[351984998,1738867854445,-500.0,0.00016986,2]
[351985000,1738867854455,-653.5,0.00016986,2]
[351985002,1738867854465,-500.0,0.00016986,2]
[351985004,1738867854475,-647.68,0.00016986,2]
[351985006,1738867854485,-507.04939696,0.00016986,2]
[351985008,1738867854494,-500.0,0.00016986,2]
[351985010,1738867854503,-500.0,0.00016986,2]
[351985012,1738867854514,-500.0,0.00016986,2]
[351985014,1738867854525,-757.82,0.00016986,2]
[351985016,1738867854538,-500.0,0.00016986,2]
[351985018,1738867854548,-1035.74,0.00016986,2]
[351985020,1738867854559,-236.62981147,0.00016986,2]
[351985022,1738867854570,-500.0,0.00016986,2]
[351985024,1738867854581,-568.52,0.00016986,2]
[351985026,1738867854591,-1369.64,0.00016986,2]
[351985028,1738867854602,-500.0,0.00016986,2]
[351985030,1738867854612,-775.72,0.00016986,2]
[351985032,1738867854623,-864.0,0.00016986,2]
[351985034,1738867854632,-736.48,0.00016986,2]
[351985036,1738867854642,-500.0,0.00016986,2]
[351985038,1738867854652,-1197.28,0.00016986,2]
[351985040,1738867854662,-1135.81,0.00016986,2]
[351985042,1738867854672,-500.0,0.00016986,2]
[351985044,1738867854681,-500.0,0.00016986,2]
[351985046,1738867854691,-600.58,0.00016986,2]
[351985048,1738867854701,-526.09,0.00016986,2]
[351985050,1738867854711,-500.0,0.00016986,2]
[351985051,1738867854720,-500.0,0.00016986,2]
[351985052,1738867854730,-325.60465107,0.00016986,2]
[351985053,1738867854740,-567.42,0.00016986,2]
[351985054,1738867854750,-514.34,0.00016986,2]
[351985055,1738867854761,-690.39,0.00016986,2]
[351985056,1738867854770,-1146.91,0.00016986,2]
[351985057,1738867854781,-578.84,0.00016986,2]
[351985058,1738867854791,-500.0,0.00016986,2]
[351985059,1738867854801,-500.0,0.00016986,2]
[351985061,1738867854811,-901.34,0.00016986,2]
[351985063,1738867854821,-734.86,0.00016986,2]
[351985065,1738867854831,-767.8,0.00016986,2]
[351985067,1738867854841,-500.0,0.00016986,2]
[351985069,1738867854851,-500.0,0.00016986,2]
[351985071,1738867854862,-500.0,0.00016986,2]
[351985073,1738867854872,-500.0,0.00016986,2]
[351985076,1738867854882,-599.31,0.00016986,2]
[351985078,1738867854892,-706.15,0.00016986,2]
[351985080,1738867854902,-1595.4,0.00016986,2]
[351985082,1738867854913,-500.0,0.00016986,2]
[351985084,1738867854923,-562.03,0.00016986,2]
[351985086,1738867854933,-537.82,0.00016986,2]
[351985088,1738867854943,-764.68,0.00016986,2]
[351985090,1738867854953,-508.37653454,0.00016986,2]
[351985092,1738867854962,-2169.81,0.00016986,2]
[351985094,1738867854972,-2028.65,0.00016986,2]
[351985096,1738867854982,-500.0,0.00016986,2]
[351985098,1738867854993,-500.0,0.00016986,2]
[351985100,1738867855003,-724.86,0.00016986,2]
[351985102,1738867855013,-917.83,0.00016986,2]
[351985104,1738867855024,-1019.86,0.00016986,2]
[351985106,1738867855035,-1039.14,0.00016986,2]
[351985107,1738867855045,-954.62,0.00016986,2]
[351985109,1738867855056,-500.0,0.00016986,2]
[351985111,1738867855066,-1567.45,0.00016986,2]
[351985113,1738867855077,-931.49,0.00016986,2]
[351985115,1738867855087,-500.0,0.00016986,2]
[351985116,1738867855098,-500.0,0.00016986,2]
[351985117,1738867855108,-500.0,0.00016986,2]
[351985118,1738867855117,-500.0,0.00016986,2]
[351985119,1738867855130,-963.56,0.00016986,2]
[351985120,1738867855142,-1053.66,0.00016986,2]
[351985121,1738867855152,-1242.56,0.00016986,2]
[351985122,1738867855162,-783.88,0.00016986,2]
[351985123,1738867855171,-500.0,0.00016986,2]
[351985124,1738867855183,-1118.0,0.00016986,2]
[351985125,1738867855192,-788.64,0.00016986,2]
[351985126,1738867855204,-500.0,0.00016986,2]
[351985127,1738867855213,-517.64,0.00016986,2]
[351985128,1738867855223,-746.18,0.00016986,2]
[351985129,1738867855237,-536.31,0.00016986,2]
[351985130,1738867855247,-500.0,0.00016986,2]
[351985131,1738867855257,-500.0,0.00016986,2]
[351985132,1738867855267,-581.47,0.00016986,2]
[351985133,1738867855277,-615.1,0.00016986,2]
[351985134,1738867855289,-3238.11,0.00016986,2]
[351985136,1738867855299,-1033.64,0.00016986,2]
[351985138,1738867855309,-825.6,0.00016986,2]
[351985140,1738867855319,-1473.97,0.00016986,2]
[351985142,1738867855330,-547.15,0.00016986,2]
[351985144,1738867855340,-1199.51,0.00016986,2]
[351985145,1738867855350,-500.0,0.00016986,2]
[351985146,1738867855360,-500.0,0.00016986,2]
[351985147,1738867855370,-1581.33,0.00016986,2]
[351985148,1738867855381,-2018.68,0.00016986,2]
[351985149,1738867855392,-500.0,0.00016986,2]
[351985150,1738867855402,-500.0,0.00016986,2]
[351985151,1738867855412,-2039.23,0.00016986,2]
[351985152,1738867855422,-500.0,0.00016986,2]
[351985153,1738867855432,-1529.26,0.00016986,2]
[351985154,1738867855442,-500.0,0.00016986,2]
[351985155,1738867855452,-899.5,0.00016986,2]
[351985156,1738867855463,-1045.4,0.00016986,2]
[351985158,1738867855473,-1421.24,0.00016986,2]
[351985160,1738867855483,-1066.46,0.00016986,2]
[351985162,1738867855492,-500.0,0.00016986,2]
[351985163,1738867855502,-500.0,0.00016986,2]
[351985164,1738867855512,-500.0,0.00016986,2]
[351985165,1738867855522,-881.11,0.00016986,2]
[351985166,1738867855534,-500.0,0.00016986,2]
[351985167,1738867855544,-2242.72,0.00016986,2]
[351985168,1738867855554,-565.82085073,0.00016986,2]
[351985169,1738867855564,-500.0,0.00016986,2]
[351985170,1738867855574,-500.0,0.00016986,2]
[351985171,1738867855584,-603.07,0.00016986,2]
[351985172,1738867855594,-852.06,0.00016986,2]
[351985173,1738867855604,-807.95,0.00016986,2]
[351985174,1738867855614,-500.0,0.00016986,2]
[351985175,1738867855625,-574.95,0.00016986,2]
[351985176,1738867855635,-1994.94,0.00016986,2]
[351985177,1738867855646,-500.0,0.00016986,2]
[351985178,1738867855656,-500.0,0.00016986,2]
[351985179,1738867855666,-1045.5,0.00016986,2]
[351985180,1738867855676,-770.13,0.00016986,2]
[351985181,1738867855687,-568.56,0.00016986,2]
[351985182,1738867855696,-500.0,0.00016986,2]
[351985183,1738867855706,-908.76,0.00016986,2]
[351985184,1738867855717,-1617.59,0.00016986,2]
[351985185,1738867855727,-500.0,0.00016986,2]
[351985186,1738867855737,-1114.4,0.00016986,2]
[351985187,1738867855747,-500.0,0.00016986,2]
[351985188,1738867855759,-500.0,0.00016986,2]
[351985189,1738867855770,-762.98,0.00016986,2]
[351985190,1738867855780,-500.0,0.00016986,2]
[351985191,1738867855791,-518.5,0.00016986,2]
[351985192,1738867855801,-553.73,0.00016986,2]
[351985193,1738867855811,-903.53,0.00016986,2]
[351985194,1738867855822,-500.0,0.00016986,2]
[351985195,1738867855832,-1477.93,0.00016986,2]
[351985196,1738867856028,-500.0,0.00016986,2]
[351985197,1738867856039,-6034.82044013,0.00017,4]
[351985198,1738867856180,-45963.56393744,0.00017,4]
[351985199,1738867856191,-2165.23542258,0.00017,4]